bitfinex-derivatives/quotes_ETHF0:USTF0_20251013
["timestamp","ask_amount","ask_price","bid_price","bid_amount"]
[1760324508868,0.43278,4155.3,4154.8,3.2078]
[1760324508869,0.4328,4155.1,4155.0,0.722]
[1760324510968,3.2078,4155.7,4155.5,0.722]
[1760324511165,3.2078,4155.7,4155.6,0.5039]
[1760324512465,1.08165,4156.5,4155.6,0.5039]
[1760324512466,7.17600568,4157.1,4155.6,0.5039]
[1760324512771,3.4095,4159.0,4157.6,0.5261]
[1760324512963,0.2017,4159.0,4158.0,0.5261]
[1760324513165,0.43243,4158.8,4158.4,3.2078]
[1760324513370,0.2017,4159.0,4158.4,3.2078]
[1760324513577,0.2017,4158.5,4158.4,0.00251795]
[1760324513879,0.43256,4157.5,4157.3,3.2078]
[1760324514171,0.43254,4157.7,4157.3,3.2078]
[1760324514372,0.43255,4157.6,4157.3,3.2078]
[1760324514570,0.43256,4157.5,4157.3,3.2078]
[1760324514777,0.97103,4157.7,4157.3,3.7339]
[1760324515076,0.97103,4157.7,4157.4,0.5261]
[1760324515776,0.5385,4157.7,4157.4,0.5261]
[1760324516079,0.97101,4157.9,4157.3,4.18274859]
[1760324516274,0.97101,4157.9,4157.3,4.70884859]
[1760324516575,3.2078,4158.2,4157.5,0.5261]
[1760324516874,0.20346293,4159.0,4157.9,0.5261]
[1760324516875,0.43246,4158.4,4157.9,0.5261]
[1760324517069,0.5385,4158.3,4157.9,0.5261]
[1760324517377,0.43244,4158.6,4157.9,0.5261]
[1760324517576,0.43246,4158.5,4157.9,0.5261]
[1760324517773,0.20346293,4159.0,4158.4,3.2078]
[1760324517970,0.54026293,4159.0,4158.4,3.2078]
[1760324518179,0.00176293,4159.0,4158.5,0.5261]
[1760324518472,0.00176293,4159.0,4158.5,0.64044]
[1760324518676,0.54026293,4159.0,4158.6,0.5261]
[1760324518876,0.54026293,4159.0,4158.5,0.208]
[1760324519075,0.00176293,4159.0,4158.9,3.2078]
[1760324519378,0.00176293,4159.0,4158.9,3.7339]
[1760324520673,6.57329474,4159.0,4158.3,3.2078]
[1760324520881,0.5385,4158.9,4158.3,3.2078]
[1760324521476,0.43246,4158.4,4158.3,3.2078]
[1760324522173,0.5385,4158.9,4158.3,3.2078]
[1760324522174,0.5385,4158.9,4158.3,3.7339]
[1760324522577,0.00176293,4159.0,4158.9,0.5261]
[1760324522979,0.97091,4158.9,4158.8,3.2078]
[1760324523575,0.97091,4158.9,4158.4,0.5261]
[1760324523576,0.5385,4158.9,4158.4,0.5261]
[1760324523776,0.43243,4158.7,4158.4,0.5261]
[1760324523972,0.97096,4158.4,4158.3,3.2078]
[1760324524681,0.97096,4158.4,4157.7,3.2078]
[1760324524682,0.5385,4158.4,4157.7,3.2078]
[1760324524981,0.97102,4157.8,4157.7,3.2078]
[1760324525482,0.97106,4157.4,4157.3,0.97494859]
[1760324525872,0.43255,4157.6,4157.3,0.97494859]
[1760324526079,3.7463,4158.2,4157.4,0.5261]
[1760324526292,0.4325,4158.1,4157.9,0.5261]
[1760324526486,0.4325,4158.1,4157.8,3.2078]
[1760324526677,0.4325,4158.1,4157.9,0.5261]
[1760324527072,0.4325,4158.1,4157.8,3.2078]
[1760324527380,0.4325,4158.0,4157.9,0.5261]
[1760324527982,0.4325,4158.0,4157.8,3.2078]
[1760324528280,0.5385,4157.9,4157.8,3.2078]
[1760324528786,0.43256,4157.4,4157.3,0.97494859]
[1760324528971,0.97106,4157.4,4157.3,0.97494859]
[1760324529884,0.43256,4157.4,4157.3,1.50104859]
[1760324530285,0.97106,4157.4,4157.3,0.97494859]
[1760324530881,0.4325,4158.1,4157.6,0.43254]
[1760324531081,3.2078,4158.8,4158.0,0.7341]
[1760324531283,3.2078,4158.8,4158.1,0.5261]
[1760324531483,0.00176293,4159.0,4158.6,0.5261]
[1760324531878,0.43244,4158.7,4158.5,3.4158]
[1760324532184,0.43241,4158.9,4158.5,3.4158]
[1760324532485,0.43242,4158.8,4158.6,0.5261]
[1760324532679,0.43243,4158.7,4158.6,0.5261]
[1760324534179,0.43243,4158.7,4158.5,3.4158]
[1760324534180,0.00176293,4159.0,4158.9,0.5261]
[1760324534378,0.00176293,4159.0,4158.9,5.75497867]
[1760324535287,3.2078,4160.4,4159.6,0.5261]
[1760324535591,0.5385,4160.9,4160.2,0.5261]
[1760324536185,0.43226,4160.4,4160.2,0.5261]
[1760324536485,0.43223,4160.7,4160.2,0.5261]
[1760324536685,0.00277878,4160.9,4160.2,0.5261]
[1760324537786,0.43223,4160.7,4160.2,0.5261]
[1760324537988,0.00277878,4160.9,4160.2,0.5261]
[1760324538190,0.00277878,4160.9,4160.4,5.22887867]
[1760324538487,0.43222,4160.8,4160.5,0.208]
[1760324538786,0.43496878,4160.9,4160.6,0.5261]
[1760324538987,0.00277878,4160.9,4160.6,0.95831]
[1760324539189,3.63987,4162.1,4161.1,0.5261]
[1760324539388,0.43205,4162.3,4161.8,0.5261]
[1760324539589,11.87806,4163.6,4161.5,0.64012]
[1760324539590,3.7463,4163.2,4162.3,0.5261]
[1760324539888,0.43196,4163.2,4163.0,0.5261]
[1760324540191,1.07976,4163.7,4162.5,0.208]
[1760324540192,0.43199,4162.9,4162.5,0.208]
[1760324540389,0.43201,4162.7,4162.5,0.5261]
[1760324540585,0.43201,4162.7,4162.4,3.2078]
[1760324540586,0.97052,4162.5,4162.4,3.2078]
[1760324540886,0.97052,4162.5,4161.0,0.208]
[1760324540887,0.5385,4161.8,4161.3,0.5261]
[1760324541095,0.43214,4161.4,4161.3,0.5261]
[1760324541589,0.5385,4161.8,4161.2,3.2078]
[1760324541590,0.43212,4161.6,4161.2,3.2078]
[1760324541892,0.43215,4161.3,4161.2,3.7379]
[1760324542283,0.43215,4161.3,4160.9,5.22887867]
[1760324542284,1.60818,4161.3,4160.5,3.2078]
[1760324542488,0.43222,4160.7,4160.5,3.2078]
[1760324542690,0.43222,4160.7,4160.6,0.5301]
[1760324543791,0.5278,4160.6,4160.5,3.2078]
[1760324544286,0.5278,4160.6,4160.4,0.00192733]
[1760324544287,0.96005,4160.5,4160.4,0.00192733]
[1760324544486,1.18665,4160.5,4160.4,0.00192733]
[1760324544788,4.3005113,4160.5,4160.4,0.00192733]
[1760324545886,0.96015,4159.5,4159.4,3.2078]
[1760324546094,0.43235,4159.5,4159.4,3.2078]
[1760324546595,0.96015,4159.5,4159.4,3.2078]
[1760324546981,0.4324,4159.0,4158.9,3.2078]
[1760324547186,0.4324,4159.0,4158.9,3.74097192]
[1760324547391,0.4324,4159.0,4158.9,3.21087192]
[1760324547781,0.9602,4159.0,4158.9,3.21087192]
[1760324548182,0.4324,4159.0,4158.9,3.74097192]
[1760324548382,3.73841516,4159.5,4158.9,3.74097192]
[1760324548589,0.43516516,4159.5,4159.2,5.22887867]
[1760324548798,0.43516516,4159.5,4159.4,3.2078]
[1760324548799,0.00281516,4159.5,4159.4,3.2078]
[1760324548986,0.00281516,4159.5,4159.4,3.7379]
[1760324549189,3.2078,4160.8,4160.1,0.96238]
[1760324549395,3.2078,4160.8,4160.5,0.2079]
[1760324549594,0.43219,4161.1,4160.5,0.64014]
[1760324549789,0.5278,4161.8,4161.1,0.5301]
[1760324549990,0.43223,4160.7,4160.6,0.5301]
[1760324550188,0.00258546,4160.7,4160.1,0.5301]
[1760324550394,0.00258546,4160.7,4160.6,3.7379]
[1760324550894,0.00258546,4160.7,4160.1,3.2078]
[1760324551088,0.00258546,4160.7,4160.1,3.7379]
[1760324551395,0.00258546,4160.7,4160.0,3.2078]
[1760324551396,0.43229,4160.1,4160.0,3.2078]
[1760324551891,0.43229,4160.1,4160.0,3.7379]
[1760324552099,0.00258546,4160.7,4160.1,0.5301]
[1760324552490,0.00258546,4160.7,4160.0,3.4157]
[1760324552691,0.43229,4160.2,4160.0,3.7379]
[1760324552892,4.26545644,4160.6,4158.5,1.71553435]
[1760324552893,0.4324,4159.0,4158.5,1.71553435]
[1760324553091,0.43246,4158.4,4158.0,0.5301]
[1760324553295,0.96026,4158.4,4158.0,0.5301]
[1760324553594,0.43246,4158.4,4157.6,3.2078]
[1760324553792,0.96026,4158.4,4157.6,3.2078]
[1760324553995,0.96026,4158.4,4158.3,0.97533595]
[1760324554301,0.96034,4157.7,4157.6,3.2078]
[1760324554490,0.5278,4157.7,4157.1,3.2078]
[1760324554692,1.08134,4157.8,4157.1,3.2078]
[1760324554892,0.43259,4157.2,4157.1,3.2078]
[1760324555086,0.43263,4156.9,4156.7,0.5301]
[1760324555290,0.43574037,4156.9,4156.7,0.53195417]
[1760324555486,0.00311037,4156.9,4156.8,0.5301]
[1760324559694,0.43263,4156.8,4156.7,0.00185417]
[1760324560008,0.43263,4156.8,4156.7,0.53195417]
[1760324560299,0.00311037,4156.9,4156.8,0.5301]
[1760324561492,0.00311037,4156.9,4156.7,0.00185417]
[1760324561493,0.43263,4156.8,4156.7,0.00185417]
[1760324561703,0.96043,4156.8,4156.7,0.00185417]
[1760324562097,0.5278,4156.8,4156.7,0.00185417]
[1760324562303,0.43574037,4156.9,4156.7,0.00185417]
[1760324562698,0.96354037,4156.9,4156.7,0.00185417]
[1760324563193,0.00311037,4156.9,4156.7,0.00185417]
[1760324563405,0.00311037,4156.9,4156.8,0.96273]
[1760324563702,3.64031,4158.0,4156.7,6.31234284]
[1760324563905,0.43253,4157.8,4157.3,0.43257]
[1760324564099,0.4325,4157.9,4157.5,0.5301]
[1760324564295,0.5278,4158.4,4157.0,0.2079]
[1760324564296,0.43248,4158.1,4157.8,0.545]
[1760324564499,0.43248,4158.1,4157.7,3.64031]
[1760324564807,0.00264076,4158.1,4157.8,0.545]
[1760324565006,0.00264076,4158.1,4157.7,3.2078]
[1760324565207,0.00264076,4158.1,4157.8,0.545]
[1760324565405,0.43253,4157.6,4157.2,4.18536]
[1760324565600,0.43253,4157.6,4157.2,3.64036]
[1760324565802,0.8019,4158.0,4157.3,0.545]
[1760324566004,0.43249,4158.0,4157.8,0.545]
[1760324566406,0.00264076,4158.1,4157.7,3.2078]
[1760324566606,0.43249,4158.0,4157.8,0.545]
[1760324566811,0.00264076,4158.1,4157.8,0.545]
[1760324567102,0.00264076,4158.1,4157.7,3.2078]
[1760324567103,0.00264076,4158.1,4158.0,0.545]
[1760324567700,0.00264076,4158.1,4157.7,3.7528]
[1760324567905,0.4325,4157.9,4157.7,3.2078]
[1760324568507,1.0049,4157.9,4157.7,3.2078]
[1760324568704,0.4325,4157.9,4157.8,0.545]
[1760324568907,0.00264076,4158.1,4157.8,0.545]
[1760324569104,0.00264076,4158.1,4157.7,3.2078]
[1760324569306,0.00264076,4158.1,4157.8,0.545]
[1760324569508,0.43249,4158.0,4157.8,0.545]
[1760324569709,0.43249,4158.0,4157.7,3.2078]
[1760324569909,0.00264076,4158.1,4158.0,0.545]
[1760324570213,0.00264076,4158.1,4158.0,0.7539]
[1760324575826,1.08074,4159.9,4158.0,0.7539]
[1760324575827,0.5639,4160.3,4159.6,0.5646]
[1760324576024,0.5639,4160.3,4159.5,0.64842]
[1760324576025,0.43229,4159.9,4159.8,3.2078]
[1760324576327,0.43229,4159.9,4159.8,3.7724]
[1760324576516,0.99619,4159.9,4159.8,3.2078]
[1760324576720,0.00183729,4159.9,4159.8,3.77498889]
[1760324578320,3.2078,4160.7,4159.8,3.77498889]
[1760324578321,3.2078,4160.7,4159.8,3.21038889]
[1760324578521,3.2078,4160.7,4160.6,0.5646]
[1760324578725,0.43218,4161.0,4160.5,3.85612]
[1760324578923,0.5639,4161.5,4160.9,0.5646]
[1760324579225,0.43212,4161.5,4160.9,0.99677]
[1760324579421,0.43212,4161.5,4160.9,0.5646]
[1760324579422,0.00292474,4161.5,4160.9,0.5646]
[1760324579628,0.00292474,4161.5,4160.6,0.5646]
[1760324579629,0.5639,4161.4,4160.6,0.5646]
[1760324579927,0.43221,4160.7,4160.6,0.5646]
[1760324580626,0.22582474,4161.5,4160.6,0.99681]
[1760324580833,0.43504474,4161.5,4161.1,0.5646]
[1760324581022,0.00292474,4161.5,4161.1,0.5646]
[1760324581223,0.00292474,4161.5,4161.4,0.43213]
[1760324581419,0.00292474,4161.5,4161.4,0.99673]
[1760324581619,0.00292474,4161.5,4161.4,0.5646]
[1760324582726,0.43209,4162.1,4161.6,0.5646]
[1760324582927,0.43209,4162.1,4162.0,0.5646]
[1760324583634,4.28777,4163.1,4162.3,0.5646]
[1760324583635,3.2078,4163.1,4162.3,0.5646]
[1760324583930,0.43201,4162.8,4162.3,0.5646]
[1760324584125,0.43201,4162.8,4162.3,0.99665]
[1760324584327,0.00249127,4163.1,4162.6,0.5646]
[1760324584529,0.43447127,4163.1,4163.0,3.7724]
[1760324584832,0.43447127,4163.1,4163.0,3.77516899]
[1760324585228,0.99837127,4163.1,4163.0,0.00276899]
[1760324585425,4.20617127,4163.1,4163.0,0.00276899]
[1760324585736,3.64227127,4163.1,4163.0,0.56736899]
[1760324586234,0.99837127,4163.1,4163.0,0.00276899]
[1760324587830,1.64634127,4163.1,4162.0,0.5646]
[1760324588040,0.43208,4162.1,4162.0,0.5646]
[1760324588238,0.43208,4162.1,4162.0,0.2161]
[1760324588436,0.43208,4162.1,4162.0,0.7807]
[1760324588924,0.43208,4162.1,4162.0,0.56691754]
[1760324589324,0.43208,4162.1,4162.0,0.00231754]
[1760324589325,0.99598,4162.1,4162.0,0.00231754]
[1760324590833,0.2229,4161.5,4160.9,3.2078]
[1760324591034,0.43218,4161.1,4160.9,3.7724]
[1760324591229,1.08039,4161.4,4159.5,1.29696]
[1760324591230,0.43225,4160.5,4160.4,3.7724]
[1760324591529,0.43219,4160.9,4160.6,0.5646]
[1760324591726,0.43216,4161.2,4160.6,0.5646]
[1760324591927,0.5639,4162.1,4161.0,3.4239]
[1760324592131,4.288,4162.2,4161.1,0.5646]
[1760324592132,0.43216,4161.2,4161.1,0.5646]
[1760324592333,1.08042,4161.1,4160.7,0.5646]
[1760324592530,0.9961,4160.8,4160.6,0.003032]
[1760324592731,0.4322,4160.8,4160.7,0.5646]
[1760324592926,3.2078,4161.7,4160.7,0.5646]
[1760324593126,0.43211,4161.6,4161.5,3.9885]
[1760324593339,0.43211,4161.7,4161.6,0.5646]
[1760324594034,0.7868,4162.5,4161.6,0.5646]
[1760324594237,0.43205,4162.2,4161.7,0.4321]
[1760324594434,3.2078,4162.9,4162.1,3.2078]
[1760324594636,0.43205,4162.3,4162.2,0.5646]
[1760324595026,1.08240127,4163.1,4162.2,0.5646]
[1760324595027,0.43202,4162.5,4162.2,0.5646]
[1760324595232,0.43202,4162.5,4162.3,0.5646]
[1760324595428,0.432,4162.7,4162.3,0.5646]
[1760324595725,0.432,4162.7,4162.6,3.7724]
[1760324597737,0.9959,4162.7,4162.6,3.2078]
[1760324597941,0.00249127,4163.1,4162.0,3.2078]
[1760324597942,0.99596,4162.1,4162.0,3.2078]
[1760324598144,0.43206,4162.1,4162.0,3.7724]
[1760324598436,3.1607245,4163.0,4162.1,0.5646]
[1760324598640,3.1607245,4163.0,4162.5,3.7724]
[1760324598641,0.43201,4162.6,4162.5,3.7724]
[1760324598839,0.99591,4162.6,4162.5,3.2078]
[1760324600041,0.43201,4162.6,4162.5,3.2078]
[1760324600634,0.99591,4162.6,4162.5,3.2078]
[1760324601143,0.432,4162.7,4162.6,0.5646]
[1760324601442,0.43198,4162.9,4162.5,3.4239]
[1760324601638,0.43198,4162.9,4162.6,0.5214]
[1760324601838,0.432,4162.8,4162.6,0.5214]
[1760324602143,0.432,4162.7,4162.5,3.4239]
[1760324602346,0.43198,4162.9,4162.6,0.5214]
[1760324602534,0.00249127,4163.1,4162.6,0.5214]
[1760324602733,0.00249127,4163.1,4163.0,3.9512]
[1760324606336,0.00249127,4163.1,4163.0,3.2078]
[1760324606542,0.00249127,4163.1,4163.0,3.7292]
[1760324606849,0.00249127,4163.1,4163.0,0.5214]
[1760324607047,0.43203,4162.6,4162.5,3.9512]
[1760324608247,0.43203,4162.6,4162.5,3.7292]
[1760324608450,0.43203,4162.6,4162.5,0.5214]
[1760324608642,0.43203,4162.6,4162.5,3.7292]
[1760324608842,0.43203,4162.6,4162.5,0.5214]
[1760324610544,0.43203,4162.6,4162.5,0.7434]
[1760324611143,0.43203,4162.6,4162.5,3.9512]
[1760324613044,0.00249127,4163.1,4162.5,3.9512]
[1760324613045,0.43201,4162.8,4162.5,3.4298]
[1760324613250,0.43201,4162.8,4162.6,0.5214]
[1760324613547,0.43199,4163.0,4162.6,0.5214]
[1760324613756,0.43447127,4163.1,4163.0,0.7434]
[1760324614244,0.43447127,4163.1,4163.0,0.5214]
[1760324614649,0.00249127,4163.1,4163.0,3.9512]
[1760324615153,0.00249127,4163.1,4163.0,9.83956489]
[1760324615754,3.2078,4164.0,4163.6,0.4319]
[1760324615954,0.43183,4164.3,4164.1,0.5214]
[1760324616253,0.43183,4164.4,4164.2,0.5214]
[1760324616553,0.43179,4164.7,4164.6,0.5214]
[1760324616759,0.43486285,4164.7,4164.6,3.73128465]
[1760324620953,0.43486285,4164.7,4164.6,0.00208465]
[1760324620954,0.95386285,4164.7,4164.6,0.00208465]
[1760324621162,0.43191,4163.7,4163.6,3.2078]
[1760324621359,0.95097,4163.2,4163.1,3.7292]
[1760324621662,0.43197,4163.2,4163.1,3.7292]
[1760324622259,0.43196,4163.3,4163.2,0.5214]
[1760324622459,0.43186,4164.3,4163.6,0.5214]
[1760324622663,0.43187,4164.1,4164.0,3.9512]
[1760324622856,0.43185,4164.3,4164.1,0.5214]
[1760324623156,0.43186,4164.3,4164.0,3.4298]
[1760324623354,0.52207285,4164.7,4164.1,0.5214]
[1760324623862,0.43186,4164.3,4164.1,0.5214]
[1760324624063,0.43187,4164.2,4164.1,0.5214]
[1760324626363,0.43187,4164.2,4164.1,3.7292]
[1760324626761,0.52867285,4164.7,4163.6,3.2078]
[1760324626762,0.43189,4163.7,4163.6,3.2078]
[1760324626968,0.95749,4163.7,4163.6,3.2078]
[1760324627461,1.60535,4163.7,4163.1,3.21065035]
[1760324628062,3.2078,4164.0,4163.2,0.5669]
[1760324628264,3.2078,4164.0,4163.6,0.5669]
[1760324628462,1.07953,4164.5,4163.8,0.5669]
[1760324628661,1.07953,4164.5,4163.7,3.2078]
[1760324628662,0.5256,4163.8,4163.7,3.2078]
[1760324629063,0.5256,4163.8,4163.7,3.7747]
[1760324629464,0.43187,4163.9,4163.7,3.2078]
[1760324629669,0.43187,4163.9,4163.8,0.5669]
[1760324629865,0.00307285,4164.7,4164.0,0.2164]
[1760324630074,0.00307285,4164.7,4164.2,3.2078]
[1760324630272,0.00307285,4164.7,4164.3,0.5669]
[1760324630566,0.00307285,4164.7,4164.5,0.2164]
[1760324630767,0.43486285,4164.7,4164.6,0.5669]
[1760324631765,0.43486285,4164.7,4164.6,0.9987]
[1760324631766,0.00307285,4164.7,4164.6,0.9987]
[1760324631965,0.00307285,4164.7,4164.6,0.5669]
[1760324634075,0.43174,4165.3,4164.8,0.43177]
[1760324634368,0.43172,4165.4,4165.3,0.5466]
[1760324635173,0.544,4166.4,4165.6,0.5466]
[1760324635373,1.07907,4166.3,4165.8,0.5466]
[1760324635671,0.43166,4165.9,4165.8,0.5466]
[1760324637881,0.43166,4165.9,4165.7,3.2078]
[1760324638073,0.544,4165.8,4165.7,3.2078]
[1760324641174,0.43173,4165.5,4165.4,0.5466]
[1760324641878,0.43173,4165.5,4165.2,3.2078]
[1760324641879,0.97575,4165.3,4165.2,3.2078]
[1760324642078,4.28707,4165.7,4163.5,0.2193]
[1760324642079,3.2078,4165.7,4165.0,0.2193]
[1760324642284,0.43173,4165.5,4165.3,0.5466]
[1760324642586,0.43175,4165.3,4165.2,3.7544]
[1760324642879,0.43175,4165.3,4165.2,0.5466]
[1760324643174,0.97575,4165.3,4165.2,0.5466]
[1760324643580,0.43175,4165.3,4165.2,3.7544]
[1760324644482,1.2915,4166.0,4164.7,3.2078]
[1760324644483,0.544,4164.8,4164.7,3.2078]
[1760324644779,0.43179,4164.9,4164.8,0.5466]
[1760324646276,3.2078,4165.7,4164.8,0.97839]
[1760324646479,0.43175,4165.3,4165.2,3.7544]
[1760324647485,0.4318,4164.8,4164.7,3.7544]
[1760324647685,0.43176,4165.1,4165.0,0.2193]
[1760324647982,0.43176,4165.1,4165.0,0.7659]
[1760324648184,0.43176,4165.1,4165.0,0.5466]
[1760324648482,0.43178,4164.8,4164.7,3.7544]
[1760324648885,0.97578,4164.8,4164.7,3.7544]
[1760324649180,0.43187,4164.0,4163.6,0.5466]
[1760324649480,0.544,4165.1,4164.2,0.43184]
[1760324649678,0.544,4165.1,4164.4,0.5466]
[1760324650275,0.43181,4164.6,4164.3,3.2078]
[1760324650475,0.43181,4164.6,4164.4,0.5466]
[1760324650674,2.13549396,4168.0,4164.3,3.2078]
[1760324650675,4.28696,4166.0,4165.1,0.5466]
[1760324650975,0.43171,4165.6,4165.5,0.7659]
[1760324651171,0.43171,4165.6,4165.5,0.5466]
[1760324651585,0.97571,4165.6,4165.5,0.5466]
[1760324651775,0.43172,4165.4,4165.3,3.7544]
[1760324652085,0.43172,4165.4,4165.2,3.2078]
[1760324652086,0.43173,4165.4,4165.2,3.2078]
[1760324652287,0.43173,4165.4,4165.3,0.5466]
[1760324652585,0.4317,4165.6,4165.2,3.2078]
[1760324652786,0.4317,4165.6,4165.3,0.5466]
[1760324653085,0.544,4165.9,4165.3,0.5466]
[1760324653474,0.43168,4165.8,4165.7,3.2078]
[1760324653776,3.2078,4166.6,4165.8,0.5466]
[1760324653977,0.43166,4166.0,4165.8,0.5466]
[1760324654184,0.544,4165.9,4165.8,0.5466]
[1760324654383,0.97568,4165.8,4165.7,3.2078]
[1760324654774,0.544,4165.4,4165.2,4.92557528]
[1760324654972,0.2123,4166.0,4165.3,1.71777528]
[1760324654973,0.4317,4165.6,4165.3,1.71777528]
[1760324655671,0.43167,4165.9,4165.5,0.2193]
[1760324655875,0.43167,4165.9,4165.8,0.5466]
[1760324656077,0.97567,4165.9,4165.7,3.2078]
[1760324656279,0.97567,4165.9,4165.4,1.71777528]
[1760324656280,0.43172,4165.4,4165.3,0.5466]
[1760324656476,3.2078,4166.1,4165.3,0.5466]
[1760324656677,0.97573,4165.3,4165.2,3.2078]
[1760324659779,0.4318,4164.6,4164.5,4.92557528]
[1760324659985,0.9758,4164.6,4164.5,4.92557528]
[1760324660383,0.43183,4164.3,4164.2,1.71777528]
[1760324660584,0.97585,4164.1,4164.0,4.92557528]
[1760324661384,0.97585,4164.1,4164.0,3.2078]
[1760324662883,0.95711,4163.6,4163.5,1.71777528]
[1760324663286,0.95711,4163.6,4163.4,3.2078]
[1760324663287,0.5252,4163.5,4163.4,1.71777528]
[1760324663487,0.7442,4163.5,4163.4,1.71777528]
[1760324663786,0.7442,4163.5,4163.1,0.00285035]
[1760324663787,0.43195,4163.2,4163.1,0.00285035]
[1760324663991,0.95906978,4163.2,4163.1,0.00285035]
[1760324664183,0.00191978,4163.2,4163.1,0.53685035]
[1760324665378,0.52711978,4163.2,4163.1,0.00285035]
[1760324674594,0.52711978,4163.2,4163.1,0.53685035]
[1760324674787,0.00191978,4163.2,4163.1,3.74465035]
[1760324676097,0.52711978,4163.2,4163.1,3.21065035]
[1760324676397,0.52711978,4163.2,4163.1,3.74465035]
[1760324676592,0.52711978,4163.2,4163.1,3.21065035]
[1760324676791,0.52711978,4163.2,4163.1,0.00285035]
[1760324678698,0.00191978,4163.2,4163.1,6.18128792]
[1760324678895,0.00191978,4163.2,4163.1,5.74932792]
[1760324679697,0.52711978,4163.2,4163.1,0.00285035]
[1760324685503,1.24981978,4163.2,4163.1,0.00285035]
[1760324686100,1.24981978,4163.2,4163.1,6.45322792]
[1760324686101,0.43386978,4163.2,4163.1,6.45322792]
[1760324686295,0.00191978,4163.2,4163.1,6.09392792]
[1760324686604,0.00191978,4163.2,4163.1,10.67018736]
[1760324687296,0.00191978,4163.2,4163.1,3.73855035]
[1760324687493,0.00191978,4163.2,4163.1,5.45868656]
[1760324688197,0.00191978,4163.2,4163.1,3.73855035]
[1760324690604,0.00191978,4163.2,4163.1,5.88234655]
[1760324691606,0.00191978,4163.2,4163.1,3.73855035]
[1760324692800,0.00191978,4163.2,4163.1,6.60504655]
[1760324695209,0.00191978,4163.2,4163.1,4.46125035]
[1760324696609,1.23831978,4163.2,4163.1,4.93457109]
[1760324696815,1.23831978,4163.2,4163.1,1.72677109]
[1760324697110,1.23831978,4163.2,4163.1,3.5e-07]
[1760324698609,4.44611978,4163.2,4163.1,3.5e-07]
[1760324701113,7.6031625,4163.2,4163.1,3.5e-07]
[1760324701313,7.6031625,4163.2,4163.1,0.34520035]
[1760324701612,4.44611978,4163.2,4163.1,0.34520035]
[1760324701910,6.97978199,4163.2,4163.1,3.5e-07]
[1760324702514,7.54572021,4163.2,4163.1,3.5e-07]
[1760324706617,6.97978199,4163.2,4163.1,3.5e-07]
[1760324706812,6.97978199,4163.2,4163.1,5.21247792]
[1760324706813,3.20971978,4163.2,4163.1,5.21247792]
[1760324707008,3.2078,4164.3,4163.2,0.5194]
[1760324707316,3.2078,4164.3,4163.1,8.85222792]
[1760324707317,0.4319,4163.7,4163.6,3.7272]
[1760324707507,0.4319,4163.7,4163.6,0.5194]
[1760324707709,0.9555,4163.7,4163.6,0.5194]
[1760324707909,0.9555,4163.7,4163.2,0.5194]
[1760324707910,0.43194,4163.3,4163.2,0.5194]
[1760324708412,0.5236,4163.2,4163.1,3.5e-07]
[1760324708910,0.43194,4163.3,4163.1,3.5e-07]
[1760324709213,3.09896222,4163.2,4163.1,3.5e-07]
[1760324709913,3.66437858,4163.2,4163.1,3.5e-07]
[1760324712218,8.91437858,4163.2,4163.1,3.5e-07]
[1760324715319,3.66437858,4163.2,4163.1,3.5e-07]
[1760324715822,3.09896222,4163.2,4163.1,3.5e-07]
[1760324719221,0.43194,4163.3,4163.1,3.5e-07]
[1760324721920,0.5233,4163.2,4163.1,3.5e-07]
[1760324722225,3.17145855,4163.2,4163.1,3.5e-07]
[1760324722622,3.17145855,4163.2,4161.9,1.72392074]
[1760324722623,1.08006,4162.7,4161.9,1.72392074]
[1760324722830,1.08006,4162.7,4161.8,3.2078]
[1760324722831,0.4321,4161.9,4161.8,3.2078]
[1760324723125,0.9554,4161.9,4161.8,3.2078]
[1760324723320,0.9554,4161.9,4161.6,1.72392074]
[1760324723321,0.9554,4161.9,4161.7,1.72392074]
[1760324723527,0.5233,4161.4,4161.3,3.2078]
[1760324723719,0.5233,4161.4,4161.3,3.21014149]
[1760324723920,0.43212,4161.5,4161.3,3.21014149]
[1760324724120,0.43212,4161.5,4161.4,0.5072]
[1760324724322,0.5233,4161.4,4161.3,3.21014149]
[1760324725927,0.5233,4161.4,4161.3,0.00234149]
[1760324726131,3.5886637,4161.4,4161.3,0.00234149]
[1760324726330,0.43223,4160.4,4160.2,3.2078]
[1760324726630,0.4323,4159.8,4159.7,3.2078]
[1760324726931,0.9556,4159.8,4159.7,3.2078]
[1760324727328,4.0323461,4159.8,4159.7,0.00229695]
[1760324728631,0.43241,4158.7,4158.6,3.2078]
[1760324728827,0.95571,4158.7,4158.6,3.2078]
[1760324729631,0.95571,4158.7,4158.6,3.20956547]
[1760324730028,0.5233,4159.4,4158.6,3.71676547]
[1760324730332,0.43238,4159.0,4158.6,3.20956547]
[1760324730533,0.95569,4159.0,4158.7,0.5072]
[1760324730831,0.95569,4159.0,4158.6,3.20956547]
[1760324730832,0.43233,4159.5,4159.1,0.93956]
[1760324731021,3.64011,4159.7,4159.2,0.43235]
[1760324731220,0.00260043,4159.8,4159.1,3.2078]
[1760324731432,0.5233,4159.7,4159.1,3.715]
[1760324731629,0.00260043,4159.8,4159.1,3.715]
[1760324731630,0.43236,4159.3,4159.1,3.715]
[1760324731833,0.43236,4159.3,4159.1,3.2078]
[1760324731834,0.5233,4159.2,4159.1,3.2078]
[1760324732332,0.43241,4158.7,4158.6,0.00176547]
[1760324732641,0.95571,4158.7,4158.6,0.00176547]
[1760324735639,7.25470597,4158.7,4158.6,0.00176547]
[1760324735937,0.95582,4157.6,4157.5,3.2078]
[1760324736437,0.2063,4158.0,4156.9,3.2078]
[1760324736438,0.5233,4157.3,4156.9,3.2078]
[1760324736640,0.95583,4157.6,4157.0,0.7215]
[1760324736839,0.95583,4157.6,4157.4,3.2078]
[1760324737140,0.5233,4157.5,4157.4,3.2078]